[Event "*** Titled Tuesday Blitz"]
[Site "Chess.com"]
[Date "2020.11.10"]
[Round "8"]
[White "Vsevolod_Ovchinnikov"]
[Black "vladimirssvesnikovs"]
[Result "1/2-1/2"]
[WhiteElo "2528"]
[BlackElo "2332"]
[TimeControl "180+1"]
[EndTime "11:34:16 PST"]
[Termination "Game drawn by repetition"]

1. d4 {[%clk 0:03:00.9]} 1... d5 {[%clk 0:02:31.4]} 2. c4 {[%clk 0:03:00.4]}
2... e6 {[%clk 0:02:29.7]} 3. Nf3 {[%clk 0:03:00.6]} 3... Nf6 {[%clk 0:02:29]}
4. g3 {[%clk 0:03:01.2]} 4... dxc4 {[%clk 0:02:28.9]} 5. Bg2 {[%clk 0:03:01.4]}
5... c5 {[%clk 0:02:28.9]} 6. O-O {[%clk 0:03:00.5]} 6... Nc6 {[%clk 0:02:29.3]}
7. Qa4 {[%clk 0:02:57.8]} 7... Bd7 {[%clk 0:02:28.9]} 8. Qxc4 {[%clk 0:02:57.6]}
8... b5 {[%clk 0:02:29.3]} 9. Qd3 {[%clk 0:02:57.4]} 9... c4 {[%clk 0:02:29.3]}
10. Qd1 {[%clk 0:02:53.3]} 10... Rc8 {[%clk 0:02:29.1]} 11. Re1 {[%clk
0:02:50.1]} 11... Be7 {[%clk 0:02:27.8]} 12. e4 {[%clk 0:02:49.5]} 12... O-O
{[%clk 0:02:28]} 13. a3 {[%clk 0:02:41.8]} 13... Re8 {[%clk 0:02:18.2]} 14. Nc3
{[%clk 0:02:39.3]} 14... Na5 {[%clk 0:02:16.9]} 15. Be3 {[%clk 0:02:30.3]} 15...
Nb3 {[%clk 0:02:16.5]} 16. Rb1 {[%clk 0:02:30.1]} 16... a5 {[%clk 0:02:14.4]}
17. Ne5 {[%clk 0:02:28.1]} 17... b4 {[%clk 0:02:11.7]} 18. axb4 {[%clk
0:02:26.8]} 18... axb4 {[%clk 0:02:12.6]} 19. Nxc4 {[%clk 0:02:01.3]} 19... Nxd4
{[%clk 0:01:53.9]} 20. Qxd4 {[%clk 0:02:00.6]} 20... bxc3 {[%clk 0:01:45.9]} 21.
bxc3 {[%clk 0:01:59.3]} 21... Bc5 {[%clk 0:00:56.6]} 22. Qd2 {[%clk 0:01:57.8]}
22... Bxe3 {[%clk 0:00:54.9]} 23. Nxe3 {[%clk 0:01:58.7]} 23... Bc6 {[%clk
0:00:51.8]} 24. Qc2 {[%clk 0:01:47.8]} 24... Qc7 {[%clk 0:00:48.8]} 25. Red1
{[%clk 0:01:44.5]} 25... h6 {[%clk 0:00:41.6]} 26. Rd4 {[%clk 0:01:37.5]} 26...
e5 {[%clk 0:00:39]} 27. Rc4 {[%clk 0:01:36.1]} 27... Qa5 {[%clk 0:00:30.7]} 28.
Qb2 {[%clk 0:01:29.4]} 28... Bd7 {[%clk 0:00:24.8]} 29. Qb4 {[%clk 0:01:22.1]}
29... Qxb4 {[%clk 0:00:19.6]} 30. cxb4 {[%clk 0:01:23]} 30... Bb5 {[%clk
0:00:16.5]} 31. Rxc8 {[%clk 0:01:10]} 31... Rxc8 {[%clk 0:00:17.4]} 32. f3
{[%clk 0:01:10.2]} 32... Rc3 {[%clk 0:00:16.1]} 33. Kf2 {[%clk 0:01:02.9]} 33...
Nd7 {[%clk 0:00:15.2]} 34. Rb2 {[%clk 0:00:55.3]} 34... Nb6 {[%clk 0:00:14.7]}
35. Bf1 {[%clk 0:00:30.3]} 35... Bxf1 {[%clk 0:00:13.2]} 36. Nxf1 {[%clk
0:00:31.2]} 36... Nc4 {[%clk 0:00:10.9]} 37. Ra2 {[%clk 0:00:24.1]} 37... Rb3
{[%clk 0:00:10.5]} 38. Nd2 {[%clk 0:00:23]} 38... Nxd2 {[%clk 0:00:10.3]} 39.
Rxd2 {[%clk 0:00:23.9]} 39... Rxb4 {[%clk 0:00:10.7]} 40. h4 {[%clk 0:00:20]}
40... h5 {[%clk 0:00:10.4]} 41. Rd8+ {[%clk 0:00:17]} 41... Kh7 {[%clk
0:00:10.4]} 42. Rd2 {[%clk 0:00:16.5]} 42... f6 {[%clk 0:00:10.4]} 43. Kg2
{[%clk 0:00:16.6]} 43... Rb3 {[%clk 0:00:10.7]} 44. Kf2 {[%clk 0:00:16.8]} 44...
Kg6 {[%clk 0:00:10.8]} 45. Ke2 {[%clk 0:00:16.7]} 45... Ra3 {[%clk 0:00:11.2]}
46. Kf2 {[%clk 0:00:17]} 46... Kf7 {[%clk 0:00:11.2]} 47. Rd7+ {[%clk
0:00:15.8]} 47... Kg6 {[%clk 0:00:11.6]} 48. Rd2 {[%clk 0:00:16.3]} 48... Rc3
{[%clk 0:00:11.5]} 49. Ke2 {[%clk 0:00:16.1]} 49... Kf7 {[%clk 0:00:11.6]} 50.
Rd7+ {[%clk 0:00:15.7]} 50... Kf8 {[%clk 0:00:11.9]} 51. Rd2 {[%clk 0:00:15.2]}
51... Ke7 {[%clk 0:00:11.6]} 52. Kf2 {[%clk 0:00:15.8]} 52... Ke6 {[%clk
0:00:11.8]} 53. Ke2 {[%clk 0:00:15.8]} 53... Rb3 {[%clk 0:00:11.4]} 54. Kf2
{[%clk 0:00:16.2]} 54... Rb6 {[%clk 0:00:11.6]} 55. Ke2 {[%clk 0:00:16.3]} 55...
Rd6 {[%clk 0:00:11.5]} 56. Rc2 {[%clk 0:00:16.3]} 56... Ra6 {[%clk 0:00:10]} 57.
Rd2 {[%clk 0:00:16.3]} 57... Kf7 {[%clk 0:00:09.9]} 58. Rd7+ {[%clk 0:00:15.4]}
58... Kg6 {[%clk 0:00:10.2]} 59. Rd2 {[%clk 0:00:15.8]} 59... Ra3 {[%clk
0:00:10.6]} 60. Kf2 {[%clk 0:00:16.2]} 1/2-1/2

[Event "*** Titled Tuesday Blitz"]
[Site "Chess.com"]
[Date "2020.11.10"]
[Round "8"]
[White "szachuspl"]
[Black "dpopadic"]
[Result "1-0"]
[WhiteElo "2524"]
[BlackElo "2346"]
[TimeControl "180+1"]
[EndTime "11:34:16 PST"]
[Termination "szachuspl won on time"]

1. d4 {[%clk 0:03:00.9]} 1... Nf6 {[%clk 0:02:59.3]} 2. c4 {[%clk 0:02:59.4]}
2... g6 {[%clk 0:02:59.4]} 3. Nc3 {[%clk 0:02:59.1]} 3... Bg7 {[%clk 0:03:00]}
4. e4 {[%clk 0:02:58.7]} 4... d6 {[%clk 0:03:00.9]} 5. Nf3 {[%clk 0:02:58.2]}
5... O-O {[%clk 0:03:01.8]} 6. Be2 {[%clk 0:02:58.7]} 6... e5 {[%clk 0:03:02.7]}
7. Be3 {[%clk 0:02:57.7]} 7... Na6 {[%clk 0:03:03.6]} 8. d5 {[%clk 0:02:55.8]}
8... Ng4 {[%clk 0:03:04.5]} 9. Bg5 {[%clk 0:02:55.4]} 9... Qe8 {[%clk
0:03:02.7]} 10. h3 {[%clk 0:02:54.8]} 10... f6 {[%clk 0:03:02.3]} 11. Bh4 {[%clk
0:02:53.2]} 11... Nh6 {[%clk 0:03:00.7]} 12. g4 {[%clk 0:02:51.7]} 12... Nf7
{[%clk 0:02:57.1]} 13. Rg1 {[%clk 0:02:50.3]} 13... Bd7 {[%clk 0:02:49.2]} 14.
Nd2 {[%clk 0:02:47.7]} 14... Qe7 {[%clk 0:02:35.1]} 15. Qc2 {[%clk 0:02:44.5]}
15... c6 {[%clk 0:02:35.2]} 16. a3 {[%clk 0:02:26.7]} 16... Rac8 {[%clk
0:02:34.1]} 17. dxc6 {[%clk 0:02:24]} 17... bxc6 {[%clk 0:02:31.7]} 18. b4
{[%clk 0:02:23.9]} 18... Nc7 {[%clk 0:02:31.5]} 19. O-O-O {[%clk 0:02:22.4]}
19... Ne6 {[%clk 0:02:31]} 20. Nb3 {[%clk 0:02:20.9]} 20... Neg5 {[%clk
0:02:15.2]} 21. Qd3 {[%clk 0:02:14.8]} 21... Nxh3 {[%clk 0:02:06.2]} 22. Qxh3
{[%clk 0:02:12.7]} 22... Be6 {[%clk 0:01:59.7]} 23. Qd3 {[%clk 0:02:09.5]} 23...
Rfd8 {[%clk 0:01:58.4]} 24. f3 {[%clk 0:02:09.5]} 24... d5 {[%clk 0:01:52.3]}
25. Nc5 {[%clk 0:02:06.5]} 25... dxc4 {[%clk 0:01:43.9]} 26. Qc2 {[%clk
0:02:06.4]} 26... Rd4 {[%clk 0:01:43.6]} 27. Bf2 {[%clk 0:02:05.6]} 27... Rcd8
{[%clk 0:01:35.9]} 28. N3a4 {[%clk 0:02:05.4]} 28... Bc8 {[%clk 0:01:22.6]} 29.
Bxd4 {[%clk 0:02:04.1]} 29... exd4 {[%clk 0:01:22.7]} 30. Bxc4 {[%clk 0:02:04]}
30... Kh8 {[%clk 0:01:19.7]} 31. f4 {[%clk 0:02:02.8]} 31... Bh6 {[%clk
0:01:16.4]} 32. g5 {[%clk 0:02:02.1]} 32... fxg5 {[%clk 0:01:15.1]} 33. Bxf7
{[%clk 0:02:02.3]} 33... Qxf7 {[%clk 0:01:10.7]} 34. fxg5 {[%clk 0:02:02.7]}
34... Bg7 {[%clk 0:01:01.9]} 35. Rgf1 {[%clk 0:02:03.1]} 35... Qe7 {[%clk
0:01:00.9]} 36. Nb2 {[%clk 0:02:00.6]} 36... Qxg5+ {[%clk 0:00:58]} 37. Kb1
{[%clk 0:01:59.5]} 37... a5 {[%clk 0:00:51.2]} 38. Nbd3 {[%clk 0:01:59.2]} 38...
axb4 {[%clk 0:00:49.8]} 39. axb4 {[%clk 0:02:00.1]} 39... Bg4 {[%clk 0:00:45.2]}
40. Rg1 {[%clk 0:01:56.2]} 40... h5 {[%clk 0:00:44.8]} 41. Rdf1 {[%clk
0:01:55.3]} 41... Ra8 {[%clk 0:00:41.6]} 42. Ne6 {[%clk 0:01:48.9]} 42... Qe7
{[%clk 0:00:33]} 43. Nxg7 {[%clk 0:01:49.1]} 43... Kxg7 {[%clk 0:00:31.2]} 44.
e5 {[%clk 0:01:44]} 44... Qe6 {[%clk 0:00:21.6]} 45. Rf6 {[%clk 0:01:41.8]}
45... Qd5 {[%clk 0:00:20.9]} 46. Rxg6+ {[%clk 0:01:42.1]} 46... Kh7 {[%clk
0:00:14.6]} 47. Nf4 {[%clk 0:01:41.3]} 47... d3 {[%clk 0:00:14.8]} 48. Nxd3
{[%clk 0:01:32.5]} 48... Bf5 {[%clk 0:00:11.1]} 49. R6g3 {[%clk 0:01:16.5]}
49... Rd8 {[%clk 0:00:09.1]} 50. Rd1 {[%clk 0:01:11.1]} 50... h4 {[%clk
0:00:08.6]} 51. Re3 {[%clk 0:01:09.4]} 51... Qd4 {[%clk 0:00:08.7]} 52. Rf3
{[%clk 0:01:01.2]} 52... Bg6 {[%clk 0:00:08.4]} 53. Qb2 {[%clk 0:00:56.7]} 53...
Qc4 {[%clk 0:00:06.2]} 54. e6 {[%clk 0:00:47.3]} 54... Qe4 {[%clk 0:00:06]} 55.
Rh3 {[%clk 0:00:42.2]} 55... Qg4 {[%clk 0:00:04.6]} 56. Re3 {[%clk 0:00:34.3]}
56... Qxd1+ {[%clk 0:00:03.9]} 57. Qc1 {[%clk 0:00:30.2]} 57... Bxd3+ {[%clk
0:00:01.8]} 58. Kb2 {[%clk 0:00:30.2]} 58... Qxc1+ {[%clk 0:00:01.3]} 59. Kxc1
{[%clk 0:00:31.1]} 59... Bc4 {[%clk 0:00:01.1]} 60. e7 {[%clk 0:00:31.6]} 60...
Re8 {[%clk 0:00:01.4]} 61. Re4 {[%clk 0:00:32.5]} 1-0

[Event "*** Titled Tuesday Blitz"]
[Site "Chess.com"]
[Date "2020.11.10"]
[Round "8"]
[White "GMJustin"]
[Black "Chamal_Gedgafov"]
[Result "1/2-1/2"]
[WhiteElo "2313"]
[BlackElo "2154"]
[TimeControl "180+1"]
[EndTime "11:34:18 PST"]
[Termination "Game drawn - insufficient material"]

1. e4 {[%clk 0:02:48.7]} 1... e6 {[%clk 0:02:59.5]} 2. d4 {[%clk 0:02:44.6]}
2... d5 {[%clk 0:02:59.2]} 3. Nc3 {[%clk 0:02:43.3]} 3... Bb4 {[%clk 0:02:57.9]}
4. Qg4 {[%clk 0:02:39.8]} 4... Nf6 {[%clk 0:02:52.1]} 5. Qxg7 {[%clk 0:02:39.6]}
5... Rg8 {[%clk 0:02:52.2]} 6. Qh6 {[%clk 0:02:39.8]} 6... dxe4 {[%clk
0:02:52.3]} 7. Ne2 {[%clk 0:02:21.7]} 7... Nbd7 {[%clk 0:02:48.2]} 8. Bg5 {[%clk
0:02:08.3]} 8... b6 {[%clk 0:02:42.4]} 9. O-O-O {[%clk 0:01:59]} 9... Bb7 {[%clk
0:02:40.2]} 10. d5 {[%clk 0:01:43.3]} 10... e5 {[%clk 0:02:10]} 11. Nxe4 {[%clk
0:01:35.5]} 11... Be7 {[%clk 0:02:09.5]} 12. Nxf6+ {[%clk 0:01:23.1]} 12... Bxf6
{[%clk 0:01:58.1]} 13. Bxf6 {[%clk 0:01:21.5]} 13... Qxf6 {[%clk 0:01:57.6]} 14.
Qxf6 {[%clk 0:01:12.4]} 14... Nxf6 {[%clk 0:01:56.9]} 15. Nc3 {[%clk 0:01:01.7]}
15... O-O-O {[%clk 0:01:51.5]} 16. g3 {[%clk 0:00:43.5]} 16... Nxd5 {[%clk
0:01:48]} 17. Bh3+ {[%clk 0:00:42.5]} 17... Kb8 {[%clk 0:01:46.1]} 18. Nxd5
{[%clk 0:00:42.7]} 18... Bxd5 {[%clk 0:01:40.7]} 19. Rhe1 {[%clk 0:00:41.8]}
19... Bf3 {[%clk 0:01:34.7]} 20. Rxd8+ {[%clk 0:00:35.7]} 20... Rxd8 {[%clk
0:01:35.6]} 21. Bf5 {[%clk 0:00:35.6]} 21... h6 {[%clk 0:01:32.6]} 22. c3 {[%clk
0:00:34.7]} 22... f6 {[%clk 0:01:29.5]} 23. Be4 {[%clk 0:00:33.3]} 23... Bg4
{[%clk 0:01:15.4]} 24. f3 {[%clk 0:00:31.8]} 24... Be6 {[%clk 0:01:14.4]} 25.
Kc2 {[%clk 0:00:18.5]} 25... c5 {[%clk 0:01:11.3]} 26. b3 {[%clk 0:00:14]} 26...
Kc7 {[%clk 0:01:06.5]} 27. f4 {[%clk 0:00:13.2]} 27... exf4 {[%clk 0:00:53.5]}
28. gxf4 {[%clk 0:00:12.7]} 28... b5 {[%clk 0:00:43.7]} 29. Bd3 {[%clk
0:00:12.3]} 29... c4 {[%clk 0:00:41.8]} 30. Rxe6 {[%clk 0:00:09.4]} 30... Rxd3
{[%clk 0:00:38.2]} 31. Rxf6 {[%clk 0:00:09.4]} 31... Rh3 {[%clk 0:00:37.6]} 32.
bxc4 {[%clk 0:00:09.2]} 32... bxc4 {[%clk 0:00:36.7]} 33. Kd2 {[%clk 0:00:06.8]}
33... Rxh2+ {[%clk 0:00:36.7]} 34. Ke3 {[%clk 0:00:07.1]} 34... Rxa2 {[%clk
0:00:34.7]} 35. Rxh6 {[%clk 0:00:06.8]} 35... Ra1 {[%clk 0:00:30.8]} 36. Kd4
{[%clk 0:00:06.6]} 36... Rf1 {[%clk 0:00:31.1]} 37. Rf6 {[%clk 0:00:06.1]} 37...
Kd7 {[%clk 0:00:27.4]} 38. Kxc4 {[%clk 0:00:06]} 38... Ke7 {[%clk 0:00:27.1]}
39. Rf5 {[%clk 0:00:05.9]} 39... Ke6 {[%clk 0:00:26.9]} 40. Re5+ {[%clk
0:00:05.6]} 40... Kd6 {[%clk 0:00:26.9]} 41. Re4 {[%clk 0:00:05.2]} 41... Rf2
{[%clk 0:00:23.1]} 42. Rd4+ {[%clk 0:00:05.2]} 42... Kc6 {[%clk 0:00:22.7]} 43.
Kd3 {[%clk 0:00:05.3]} 43... a5 {[%clk 0:00:21.8]} 44. Ke4 {[%clk 0:00:05.2]}
44... Kb5 {[%clk 0:00:20.1]} 45. f5 {[%clk 0:00:04.9]} 45... a4 {[%clk
0:00:19.6]} 46. Rd5+ {[%clk 0:00:04.4]} 46... Kc4 {[%clk 0:00:18]} 47. Ra5
{[%clk 0:00:04.3]} 47... Kb3 {[%clk 0:00:17]} 48. Ke5 {[%clk 0:00:04.4]} 48...
a3 {[%clk 0:00:17.1]} 49. f6 {[%clk 0:00:04.1]} 49... a2 {[%clk 0:00:16.8]} 50.
Ke6 {[%clk 0:00:04.1]} 50... Kxc3 {[%clk 0:00:14.4]} 51. f7 {[%clk 0:00:03.2]}
51... Kb3 {[%clk 0:00:14.4]} 52. Ke7 {[%clk 0:00:03.1]} 52... Kb2 {[%clk
0:00:14.2]} 53. f8=Q {[%clk 0:00:03.1]} 53... Rxf8 {[%clk 0:00:13.3]} 54. Kxf8
{[%clk 0:00:03.4]} 54... a1=Q {[%clk 0:00:13.2]} 55. Rxa1 {[%clk 0:00:03.9]}
55... Kxa1 {[%clk 0:00:13]} 1/2-1/2

[Event "*** Titled Tuesday Blitz"]
[Site "Chess.com"]
[Date "2020.11.10"]
[Round "8"]
[White "suyu28"]
[Black "nakajo"]
[Result "1-0"]
[WhiteElo "2636"]
[BlackElo "2463"]
[TimeControl "180+1"]
[EndTime "11:34:21 PST"]
[Termination "suyu28 won on time"]

1. e4 {[%clk 0:03:00.9]} 1... e5 {[%clk 0:02:59.3]} 2. Nf3 {[%clk 0:03:00.7]}
2... Nf6 {[%clk 0:02:59.8]} 3. Nxe5 {[%clk 0:02:36.5]} 3... d6 {[%clk
0:02:58.4]} 4. Nf3 {[%clk 0:02:36.4]} 4... Nxe4 {[%clk 0:02:58.6]} 5. Nc3 {[%clk
0:02:33.9]} 5... Nxc3 {[%clk 0:02:58.8]} 6. dxc3 {[%clk 0:02:34.2]} 6... Be7
{[%clk 0:02:59.6]} 7. Be3 {[%clk 0:02:34.1]} 7... O-O {[%clk 0:02:59.9]} 8. Qd2
{[%clk 0:02:34.2]} 8... Nd7 {[%clk 0:02:58.1]} 9. O-O-O {[%clk 0:02:34.3]} 9...
Nf6 {[%clk 0:02:58.6]} 10. h3 {[%clk 0:02:29.4]} 10... c5 {[%clk 0:02:49.5]} 11.
Bg5 {[%clk 0:02:23.8]} 11... Be6 {[%clk 0:02:32.7]} 12. Bxf6 {[%clk 0:02:23.4]}
12... Bxf6 {[%clk 0:02:33.6]} 13. Kb1 {[%clk 0:02:17.6]} 13... Qa5 {[%clk
0:02:27.7]} 14. c4 {[%clk 0:02:17.2]} 14... Qxd2 {[%clk 0:02:20.3]} 15. Rxd2
{[%clk 0:02:14.1]} 15... Rad8 {[%clk 0:02:15.6]} 16. Be2 {[%clk 0:02:13.2]}
16... d5 {[%clk 0:02:10.7]} 17. cxd5 {[%clk 0:02:11.9]} 17... Rxd5 {[%clk
0:02:07.4]} 18. Rhd1 {[%clk 0:02:09.8]} 18... Rfd8 {[%clk 0:02:03.9]} 19. Rxd5
{[%clk 0:02:08.8]} 19... Rxd5 {[%clk 0:02:04.8]} 20. Re1 {[%clk 0:02:04.9]}
20... Rd6 {[%clk 0:01:52.6]} 21. Bd3 {[%clk 0:02:03.8]} 21... g6 {[%clk
0:01:46.7]} 22. Ne5 {[%clk 0:01:57.2]} 22... a6 {[%clk 0:01:30.3]} 23. a4 {[%clk
0:01:52.8]} 23... b5 {[%clk 0:01:21]} 24. axb5 {[%clk 0:01:29.4]} 24... axb5
{[%clk 0:01:21.9]} 25. f4 {[%clk 0:01:14.9]} 25... c4 {[%clk 0:01:20.1]} 26. Be2
{[%clk 0:01:15.1]} 26... Rd4 {[%clk 0:01:09.1]} 27. Bg4 {[%clk 0:00:48.3]} 27...
Rxf4 {[%clk 0:00:51.6]} 28. Bxe6 {[%clk 0:00:47.5]} 28... fxe6 {[%clk
0:00:52.5]} 29. Nd7 {[%clk 0:00:46.6]} 29... Kf7 {[%clk 0:00:51.2]} 30. Nc5
{[%clk 0:00:46.6]} 30... Rf2 {[%clk 0:00:47]} 31. Ne4 {[%clk 0:00:44.2]} 31...
Rf4 {[%clk 0:00:26.2]} 32. Nd6+ {[%clk 0:00:43.5]} 32... Ke7 {[%clk 0:00:25.2]}
33. Nxb5 {[%clk 0:00:44]} 33... Rf2 {[%clk 0:00:21.2]} 34. g4 {[%clk 0:00:37.1]}
34... e5 {[%clk 0:00:20.5]} 35. Nc3 {[%clk 0:00:32.9]} 35... Rf3 {[%clk
0:00:19.2]} 36. Re4 {[%clk 0:00:21.4]} 36... Rxh3 {[%clk 0:00:15.1]} 37. Rxc4
{[%clk 0:00:21.4]} 37... Rh4 {[%clk 0:00:14.5]} 38. Rc7+ {[%clk 0:00:12.2]}
38... Kd6 {[%clk 0:00:12.9]} 39. Rf7 {[%clk 0:00:12]} 39... Ke6 {[%clk
0:00:12.7]} 40. Rc7 {[%clk 0:00:11.7]} 40... Rxg4 {[%clk 0:00:11.7]} 41. Rxh7
{[%clk 0:00:11.6]} 41... e4 {[%clk 0:00:12.1]} 42. Rh3 {[%clk 0:00:07.2]} 42...
Kf5 {[%clk 0:00:09.1]} 43. b4 {[%clk 0:00:07.4]} 43... Rg1+ {[%clk 0:00:05.5]}
44. Ka2 {[%clk 0:00:07.3]} 44... Kg4 {[%clk 0:00:04.3]} 45. Re3 {[%clk
0:00:05.7]} 45... Bxc3 {[%clk 0:00:04.4]} 46. Rxc3 {[%clk 0:00:05.4]} 46... Rg3
{[%clk 0:00:04.1]} 47. Rc4 {[%clk 0:00:04.8]} 47... Kf3 {[%clk 0:00:03]} 48. b5
{[%clk 0:00:05.2]} 48... Rg5 {[%clk 0:00:02.7]} 49. Rb4 {[%clk 0:00:04.5]} 49...
e3 {[%clk 0:00:03]} 50. b6 {[%clk 0:00:04.9]} 50... e2 {[%clk 0:00:03.4]} 51. b7
{[%clk 0:00:04.3]} 1-0

[Event "*** Titled Tuesday Blitz"]
[Site "Chess.com"]
[Date "2020.11.10"]
[Round "8"]
[White "GukeshDommaraju"]
[Black "Bigfish1995"]
[Result "0-1"]
[WhiteElo "2867"]
[BlackElo "2983"]
[TimeControl "180+1"]
[EndTime "11:34:26 PST"]
[Termination "Bigfish1995 won by resignation"]

1. d4 {[%clk 0:03:00.9]} 1... Nf6 {[%clk 0:01:57.3]} 2. Nf3 {[%clk 0:03:00.7]}
2... g6 {[%clk 0:01:56.7]} 3. c4 {[%clk 0:03:00.5]} 3... Bg7 {[%clk 0:01:56.9]}
4. g3 {[%clk 0:03:00.6]} 4... c5 {[%clk 0:01:55.7]} 5. Bg2 {[%clk 0:02:59.5]}
5... Nc6 {[%clk 0:01:55.8]} 6. d5 {[%clk 0:02:57.4]} 6... Na5 {[%clk 0:01:55.5]}
7. Nbd2 {[%clk 0:02:57.1]} 7... Rb8 {[%clk 0:01:55.2]} 8. a4 {[%clk 0:02:54.4]}
8... d6 {[%clk 0:01:53.1]} 9. O-O {[%clk 0:02:51.4]} 9... O-O {[%clk 0:01:52.8]}
10. Ra2 {[%clk 0:02:39.1]} 10... e6 {[%clk 0:01:52.4]} 11. e4 {[%clk 0:02:31.2]}
11... exd5 {[%clk 0:01:52.1]} 12. cxd5 {[%clk 0:02:29.6]} 12... Re8 {[%clk
0:01:49.9]} 13. Re1 {[%clk 0:02:28.9]} 13... Bd7 {[%clk 0:01:27.4]} 14. b3
{[%clk 0:02:28]} 14... b5 {[%clk 0:01:07.9]} 15. axb5 {[%clk 0:02:27.8]} 15...
Rxb5 {[%clk 0:01:05.7]} 16. Bf1 {[%clk 0:02:27.6]} 16... Rb4 {[%clk 0:01:01.9]}
17. Ba3 {[%clk 0:02:24.2]} 17... Rb8 {[%clk 0:00:51]} 18. Bb2 {[%clk 0:02:23.6]}
18... Bg4 {[%clk 0:00:42.8]} 19. h3 {[%clk 0:01:36]} 19... Bxf3 {[%clk 0:00:41]}
20. Qxf3 {[%clk 0:01:35.9]} 20... Nb7 {[%clk 0:00:18.5]} 21. Rxa7 {[%clk
0:01:32.5]} 21... Nxd5 {[%clk 0:00:17.4]} 22. Bxg7 {[%clk 0:01:29.9]} 22... Kxg7
{[%clk 0:00:18.3]} 23. Bc4 {[%clk 0:00:59.4]} 23... Nf6 {[%clk 0:00:17.6]} 24.
e5 {[%clk 0:00:56.3]} 24... dxe5 {[%clk 0:00:18]} 25. Rxb7 {[%clk 0:00:54]}
25... Rxb7 {[%clk 0:00:18.4]} 26. Qxb7 {[%clk 0:00:53.6]} 26... Re7 {[%clk
0:00:19.3]} 27. Qf3 {[%clk 0:00:31]} 27... Qxd2 {[%clk 0:00:19.4]} 28. Rd1
{[%clk 0:00:31.4]} 28... Qc2 {[%clk 0:00:17.4]} 29. Rd6 {[%clk 0:00:26.6]} 29...
Ne4 {[%clk 0:00:17.8]} 30. Rc6 {[%clk 0:00:21.3]} 30... f5 {[%clk 0:00:17.9]}
31. Bd3 {[%clk 0:00:19.3]} 31... Ng5 {[%clk 0:00:16.8]} 32. Qe3 {[%clk 0:00:17]}
32... Qd1+ {[%clk 0:00:16.7]} 33. Kg2 {[%clk 0:00:17]} 33... Nxh3 {[%clk
0:00:16.8]} 34. Bf1 {[%clk 0:00:10.9]} 34... Qd5+ {[%clk 0:00:14.4]} 35. Qf3
{[%clk 0:00:06.6]} 35... Qxf3+ {[%clk 0:00:14.3]} 36. Kxf3 {[%clk 0:00:07]}
36... Ng5+ {[%clk 0:00:15.2]} 37. Ke3 {[%clk 0:00:06.7]} 37... Ne6 {[%clk
0:00:06.5]} 38. Bc4 {[%clk 0:00:06.8]} 38... Kf6 {[%clk 0:00:05.3]} 39. Bd5
{[%clk 0:00:05.8]} 39... h5 {[%clk 0:00:05.1]} 40. Kd3 {[%clk 0:00:05.8]} 40...
e4+ {[%clk 0:00:05.3]} 41. Ke3 {[%clk 0:00:05.8]} 41... g5 {[%clk 0:00:05.4]}
42. Bxe6 {[%clk 0:00:04.5]} 42... Rxe6 {[%clk 0:00:05.6]} 43. Rxc5 {[%clk
0:00:05.4]} 43... Rb6 {[%clk 0:00:06.1]} 44. Rc3 {[%clk 0:00:05.9]} 44... Kg6
{[%clk 0:00:06.3]} 45. Kd4 {[%clk 0:00:05.9]} 45... Kf6 {[%clk 0:00:06.5]} 46.
Ke3 {[%clk 0:00:05.9]} 46... Rb5 {[%clk 0:00:06.3]} 47. Rc6+ {[%clk 0:00:05.7]}
47... Ke5 {[%clk 0:00:06.2]} 48. Rc3 {[%clk 0:00:06]} 48... f4+ {[%clk
0:00:06.5]} 49. gxf4+ {[%clk 0:00:06.6]} 49... gxf4+ {[%clk 0:00:07.1]} 50. Ke2
{[%clk 0:00:07.1]} 50... Kf5 {[%clk 0:00:07.3]} 51. f3 {[%clk 0:00:05.1]} 51...
e3 {[%clk 0:00:07.4]} 52. Rd3 {[%clk 0:00:05.3]} 52... h4 {[%clk 0:00:07.2]} 53.
Kf1 {[%clk 0:00:05.7]} 53... h3 {[%clk 0:00:07.2]} 54. Rc3 {[%clk 0:00:06.1]}
54... Kg5 {[%clk 0:00:07.1]} 0-1